bitfinex-derivatives/quotes_BTCF0:USTF0_20250130
["timestamp","ask_amount","ask_price","bid_price","bid_amount"]
[1738201200938,0.92810341,104230.0,104210.0,0.191925]
[1738201201837,0.56730341,104230.0,104210.0,0.194925]
[1738201202349,0.461357,104230.0,104220.0,0.191911]
[1738201202542,0.269462,104230.0,104220.0,0.191911]
[1738201203546,0.20057631,104230.0,104220.0,0.65865741]
[1738201203847,0.08615541,104230.0,104220.0,0.76460382]
[1738201204340,0.08586745,104230.0,104220.0,2.26460382]
[1738201204746,0.08586745,104230.0,104220.0,2.15865741]
[1738201205141,0.08586745,104230.0,104220.0,2.26460382]
[1738201205346,0.08586745,104230.0,104220.0,2.15865741]
[1738201205850,0.08586745,104230.0,104220.0,2.26460382]
[1738201206249,0.08586745,104230.0,104220.0,2.15865741]
[1738201207453,0.00014398,104240.0,104230.0,0.191892]
[1738201207648,0.00014398,104240.0,104230.0,0.76563841]
[1738201208042,0.19201798,104240.0,104230.0,0.76563841]
[1738201208750,0.19301798,104240.0,104230.0,0.76563841]
[1738201209355,0.00114398,104240.0,104230.0,0.76563841]
[1738201212241,0.00114398,104240.0,104230.0,0.81563841]
[1738201212441,0.00114398,104240.0,104230.0,0.76563841]
[1738201214439,0.00114398,104240.0,104230.0,2.26563841]
[1738201216452,0.00114398,104240.0,104230.0,0.76563841]
[1738201216654,0.00114398,104240.0,104230.0,0.93689057]
[1738201216859,0.00114398,104240.0,104230.0,2.43689057]
[1738201219852,0.00114398,104240.0,104230.0,2.26563841]
[1738201220742,0.00114398,104240.0,104230.0,2.30563841]
[1738201221658,0.00114398,104240.0,104230.0,0.69343841]
[1738201222957,0.00114398,104240.0,104230.0,0.74343841]
[1738201224042,0.00114398,104240.0,104230.0,0.69343841]
[1738201225855,0.191892,104230.0,104220.0,0.30804607]
[1738201226060,0.191892,104230.0,104220.0,0.20209966]
[1738201226356,0.263192,104230.0,104220.0,0.29799839]
[1738201226661,0.263192,104230.0,104220.0,0.19205198]
[1738201228158,0.72993841,104230.0,104220.0,0.00014398]
[1738201228459,0.623992,104230.0,104220.0,0.00014398]
[1738201229562,0.264192,104230.0,104220.0,0.00014398]
[1738201229753,0.624992,104230.0,104220.0,0.00014398]
[1738201232460,0.264192,104230.0,104220.0,0.00014398]
[1738201232661,0.264192,104230.0,104220.0,0.10609039]
[1738201232964,0.0723,104230.0,104220.0,0.29800139]
[1738201233460,0.1313,104230.0,104220.0,0.29800139]
[1738201234153,0.1311,104230.0,104220.0,0.29800139]
[1738201235053,0.1311,104230.0,104220.0,0.19205498]
[1738201236059,0.683792,104230.0,104220.0,0.00014398]
[1738201238460,0.78973841,104230.0,104220.0,0.00014398]
[1738201244565,0.9144256,104230.0,104220.0,0.00014398]
[1738201252778,0.94287455,104230.0,104220.0,0.00014398]
[1738201255178,1.11494302,104230.0,104220.0,0.00014398]
[1738201258474,0.191929,104210.0,104200.0,0.14477431]
[1738201258678,0.552729,104210.0,104200.0,0.14477431]
[1738201258873,0.552729,104210.0,104200.0,0.33672231]
[1738201259174,0.552729,104210.0,104200.0,0.14477431]
[1738201259679,0.552729,104210.0,104200.0,0.54641107]
[1738201260075,0.552729,104210.0,104200.0,0.54741107]
[1738201260473,0.191929,104210.0,104200.0,0.54741107]
[1738201260877,0.191929,104210.0,104200.0,0.54641107]
[1738201261077,0.191929,104210.0,104200.0,0.54341107]
[1738201261273,0.50139039,104220.0,104200.0,0.73535907]
[1738201261274,0.69330739,104220.0,104200.0,0.73535907]
[1738201261483,0.55286098,104220.0,104210.0,0.191929]
[1738201261783,0.55286098,104220.0,104210.0,0.227629]
[1738201261983,0.55286098,104220.0,104210.0,0.263029]
[1738201262183,0.19206098,104220.0,104210.0,0.263029]
[1738201262679,0.19406098,104220.0,104210.0,0.263029]
[1738201262885,0.00214398,104220.0,104210.0,0.263029]
[1738201263271,0.3180227,104220.0,104210.0,0.36897541]
[1738201263582,0.3701427,104220.0,104210.0,0.263029]
[1738201264981,0.3701427,104220.0,104210.0,0.623829]
[1738201265186,0.3711427,104220.0,104210.0,0.623829]
[1738201265374,0.3711427,104220.0,104210.0,0.263029]
[1738201265680,0.3711427,104220.0,104210.0,0.623829]
[1738201266082,0.3711427,104220.0,104210.0,0.263029]
[1738201267385,0.31414089,104220.0,104210.0,0.43428116]
[1738201268486,0.26202089,104220.0,104210.0,0.43428116]
[1738201268787,0.31294089,104220.0,104210.0,0.90102757]
[1738201269285,0.31294089,104220.0,104210.0,0.79508116]
[1738201271273,0.11821064,104220.0,104210.0,0.79508116]
[1738201271477,0.16841064,104220.0,104210.0,0.79508116]
[1738201272689,0.16841064,104220.0,104210.0,0.90102757]
[1738201273590,0.11821064,104220.0,104210.0,0.90102757]
[1738201273890,0.11806666,104220.0,104210.0,1.05697398]
[1738201274191,0.11806666,104220.0,104210.0,0.90102757]
[1738201274388,0.11806666,104220.0,104210.0,2.45102757]
[1738201275693,0.06126666,104220.0,104210.0,2.55697398]
[1738201276093,0.20507691,104220.0,104210.0,2.55697398]
[1738201278182,0.20507691,104220.0,104210.0,2.45102757]
[1738201279780,0.20507691,104220.0,104210.0,0.95102757]
[1738201280182,0.00014398,104230.0,104220.0,0.191911]
[1738201280490,0.38570925,104250.0,104240.0,0.191874]
[1738201280681,0.38570925,104250.0,104240.0,0.29782041]
[1738201281085,0.74650925,104250.0,104240.0,0.191874]
[1738201281294,0.191883,104240.0,104230.0,0.191889]
[1738201281482,0.301883,104240.0,104230.0,0.191889]
[1738201281684,0.351403,104240.0,104230.0,0.191889]
[1738201282496,0.352403,104240.0,104230.0,0.192889]
[1738201282686,0.713203,104240.0,104230.0,0.192889]
[1738201283192,0.81878941,104240.0,104230.0,0.192889]
[1738201283584,0.352043,104240.0,104230.0,0.192889]
[1738201283783,0.355043,104240.0,104230.0,0.192889]
[1738201284593,0.354043,104240.0,104230.0,0.192889]
[1738201284887,0.354043,104240.0,104230.0,0.191889]
[1738201289397,0.279643,104240.0,104230.0,0.191889]
[1738201291094,0.640443,104240.0,104230.0,0.191889]
[1738201291485,0.279643,104240.0,104230.0,0.191889]
[1738201294899,0.640443,104240.0,104220.0,0.73422055]
[1738201295094,0.0737,104230.0,104220.0,0.73422055]
[1738201295492,0.0737,104230.0,104220.0,0.84016696]
[1738201297204,0.0747,104230.0,104220.0,0.84016696]
[1738201297899,0.0757,104230.0,104220.0,0.84016696]
[1738201298105,0.267592,104230.0,104220.0,0.84016696]
[1738201298490,0.267592,104230.0,104220.0,0.73422055]
[1738201299594,0.628392,104230.0,104220.0,0.0100074]
[1738201299989,0.628392,104230.0,104220.0,0.00014398]
[1738201300194,0.73433841,104230.0,104220.0,0.00014398]
[1738201300605,0.69803482,104230.0,104220.0,0.00014398]
[1738201302703,0.73451612,104230.0,104220.0,0.00014398]
[1738201303003,0.628392,104230.0,104220.0,0.00014398]
[1738201303592,0.77220225,104230.0,104220.0,0.19205498]
[1738201303798,0.77220225,104230.0,104220.0,0.00014398]
[1738201305708,0.87832637,104230.0,104220.0,0.00014398]
[1738201306307,0.88815563,104230.0,104220.0,0.00014398]
[1738201308097,0.78203151,104230.0,104220.0,0.00014398]
[1738201308311,0.81028973,104230.0,104220.0,0.00014398]
[1738201308606,0.85796973,104230.0,104220.0,0.00014398]
[1738201308994,0.49716973,104230.0,104220.0,0.00014398]
[1738201309708,0.85796973,104230.0,104220.0,0.00014398]
[1738201310600,0.49716973,104230.0,104220.0,0.00014398]
[1738201310809,0.60329385,104230.0,104220.0,0.00014398]
[1738201311002,0.96409385,104230.0,104220.0,0.00014398]
[1738201311310,0.60329385,104230.0,104220.0,0.00014398]
[1738201311498,0.43122538,104230.0,104220.0,0.00014398]
[1738201312304,0.79202538,104230.0,104220.0,0.00014398]
[1738201313011,0.43122538,104230.0,104220.0,0.00014398]
[1738201313902,0.79202538,104230.0,104220.0,0.00014398]
[1738201316120,0.93562902,104230.0,104220.0,0.00014398]
[1738201317701,0.8295049,104230.0,104220.0,0.00014398]
[1738201318113,0.93562902,104230.0,104220.0,0.00014398]
[1738201321405,0.21930364,104230.0,104220.0,0.19205498]
[1738201321610,0.14560364,104230.0,104220.0,0.6589791]
[1738201321923,0.14560364,104230.0,104220.0,0.7272791]
[1738201322114,0.14560364,104230.0,104220.0,0.7614791]
[1738201323617,0.14560364,104230.0,104220.0,0.77122168]
[1738201325721,0.14560364,104230.0,104220.0,0.94272983]
[1738201325722,0.08817938,104230.0,104220.0,0.94272983]
[1738201326724,0.08817938,104230.0,104220.0,1.14885395]
[1738201327216,0.08817938,104230.0,104220.0,1.04885395]
[1738201327420,0.08817938,104230.0,104220.0,2.54885395]
[1738201327619,0.08817938,104230.0,104220.0,2.58885395]
[1738201329810,0.31581609,104250.0,104240.0,0.191874]
[1738201330027,0.31581609,104250.0,104240.0,1.12572224]
[1738201330223,0.31581609,104250.0,104240.0,1.17572224]
[1738201330520,0.19999742,104260.0,104250.0,0.191856]
[1738201330724,0.17231254,104260.0,104250.0,0.86890424]
[1738201330912,0.06011254,104260.0,104250.0,1.16890424]
[1738201331112,0.42856591,104270.0,104260.0,0.191837]
[1738201331312,0.3776079,104270.0,104260.0,0.81488524]
[1738201331514,9e-07,104270.0,104260.0,1.11488524]
[1738201331724,9e-07,104270.0,104260.0,2.61488524]
[1738201332121,0.5432088,104280.0,104270.0,0.40406724]
[1738201332315,0.5190088,104280.0,104270.0,0.81486724]
[1738201332517,0.5190088,104280.0,104270.0,1.11486724]
[1738201332719,0.5190088,104280.0,104270.0,2.61486724]
[1738201333421,0.30450071,104280.0,104270.0,2.61486724]
[1738201333926,0.13940716,104280.0,104270.0,2.61486724]
[1738201334123,0.09766513,104290.0,104270.0,2.42304824]
[1738201334329,0.09766513,104290.0,104280.0,0.76484824]
[1738201334529,0.09766513,104290.0,104280.0,0.81244824]
[1738201334827,0.0727,104310.0,104300.0,0.191764]
[1738201335030,0.0727,104310.0,104300.0,0.65868812]
[1738201336525,0.0727,104310.0,104300.0,0.65968812]
[1738201337229,0.0757,104310.0,104300.0,0.66068812]
[1738201339630,0.0757,104310.0,104300.0,0.67045554]
[1738201343930,0.0757,104310.0,104300.0,0.78045554]
[1738201344128,0.003,104310.0,104300.0,1.24737966]
[1738201345224,0.00014398,104320.0,104310.0,0.191745]
[1738201345422,0.00014398,104320.0,104310.0,0.96479324]
[1738201345837,0.00014398,104320.0,104310.0,2.46479324]
[1738201346335,0.07166001,104330.0,104320.0,0.191727]
[1738201346538,0.07166001,104330.0,104320.0,0.65865112]
[1738201347223,0.0345,104340.0,104320.0,0.46692412]
[1738201347439,0.034596,104340.0,104330.0,0.65863212]
[1738201348830,0.034596,104340.0,104330.0,0.81475624]
[1738201349330,9.6e-05,104340.0,104330.0,0.81475624]
[1738201349725,0.0355,104350.0,104340.0,0.19169]
[1738201350039,0.0355,104350.0,104340.0,0.76473824]
[1738201350331,0.0355,104350.0,104340.0,2.26473824]
[1738201350942,0.0355,104350.0,104340.0,2.26573824]
[1738201351831,0.0355,104350.0,104340.0,2.26673824]
[1738201352229,0.0355,104350.0,104340.0,0.76573824]
[1738201352838,0.0355,104350.0,104340.0,2.26573824]
[1738201353137,0.0355,104350.0,104340.0,2.26473824]
[1738201353734,0.0733,104360.0,104350.0,0.191672]
[1738201353935,0.0733,104360.0,104350.0,0.65859612]
[1738201354135,0.0733,104360.0,104350.0,0.552472]
[1738201356840,0.1098,104360.0,104350.0,0.65859612]
[1738201357036,0.1098,104360.0,104350.0,0.66834932]
[1738201357439,0.1098,104360.0,104350.0,0.5622252]
[1738201358140,0.40757712,104360.0,104350.0,0.0097532]
[1738201358347,0.40757712,104360.0,104340.0,0.55249]
[1738201358639,0.301453,104360.0,104340.0,0.55249]
[1738201359033,0.349493,104360.0,104340.0,0.55249]
[1738201359639,0.349493,104360.0,104340.0,0.55449]
[1738201359840,0.45561712,104360.0,104340.0,0.72477085]
[1738201360141,0.349493,104360.0,104340.0,0.83089497]
[1738201360333,0.349493,104360.0,104350.0,0.29779612]
[1738201360935,0.15784,104360.0,104350.0,0.29779612]
[1738201361241,0.15784,104360.0,104350.0,0.65859612]
[1738201361242,0.1098,104360.0,104350.0,0.65859612]
[1738201361942,0.1098,104360.0,104350.0,0.65959612]
[1738201362237,0.1098,104360.0,104350.0,0.65859612]
[1738201362441,0.1098,104360.0,104350.0,2.052472]
[1738201363033,0.1098,104360.0,104340.0,0.64713746]
[1738201363336,0.40758112,104360.0,104340.0,0.73269834]
[1738201363643,0.301457,104360.0,104340.0,2.33882246]
[1738201363845,0.349017,104360.0,104340.0,2.33882246]
[1738201364047,0.301457,104360.0,104340.0,2.33882246]
[1738201364341,0.349017,104360.0,104340.0,2.23269834]
[1738201364942,0.349017,104360.0,104340.0,2.33882246]
[1738201365346,0.349017,104360.0,104340.0,2.33982246]
[1738201365539,0.191672,104350.0,104340.0,2.23369834]
[1738201365734,0.65859612,104350.0,104340.0,0.18221334]
[1738201365938,0.46692412,104350.0,104330.0,0.22718511]
[1738201366137,0.70617412,104340.0,104330.0,0.22718511]
[1738201374553,0.70617412,104340.0,104330.0,0.00014398]
[1738201379856,0.3608,104340.0,104330.0,0.1062681]
[1738201380064,0.239235,104350.0,104330.0,0.3315651]
[1738201380249,0.04756,104350.0,104340.0,0.29781412]
[1738201381345,0.37880416,104360.0,104340.0,0.65861412]
[1738201381557,0.42636416,104360.0,104350.0,0.552472]
[1738201381954,0.15054816,104360.0,104350.0,0.65859612]
[1738201382152,0.55387597,104370.0,104360.0,0.191653]
[1738201382358,0.55387597,104370.0,104360.0,0.29777712]
[1738201382359,0.60143597,104370.0,104360.0,0.29777712]
[1738201382553,0.24063597,104370.0,104360.0,0.191653]
[1738201382753,0.19307597,104370.0,104360.0,0.191653]
[1738201382954,0.24063597,104370.0,104360.0,0.191653]
[1738201383760,0.11384816,104380.0,104370.0,0.191635]
[1738201383952,0.11384816,104380.0,104370.0,0.79778324]
[1738201384154,0.11384816,104380.0,104370.0,0.69165912]
[1738201384960,0.11484816,104380.0,104370.0,0.69265912]
[1738201385156,0.001,104380.0,104370.0,0.69265912]
[1738201385557,0.002,104380.0,104370.0,0.69165912]
[1738201386251,0.002,104380.0,104370.0,0.224735]
[1738201386448,0.192617,104380.0,104370.0,0.224735]
[1738201386653,0.193617,104380.0,104370.0,0.224735]
[1738201388365,0.193617,104380.0,104370.0,0.585535]
[1738201389549,0.193617,104380.0,104370.0,0.69165912]
[1738201391465,0.002,104380.0,104370.0,0.69165912]
[1738201391665,0.241457,104380.0,104370.0,0.33085912]
[1738201391864,0.241457,104380.0,104370.0,0.191635]
[1738201391865,0.602257,104380.0,104370.0,0.191635]
[1738201392068,0.191635,104370.0,104360.0,0.56221516]
[1738201392563,0.46692412,104370.0,104350.0,0.00014398]
[1738201392759,0.191653,104360.0,104350.0,0.00014398]
[1738201393066,0.55244,104370.0,104350.0,0.2979401]
[1738201393365,0.55344,104370.0,104350.0,0.2979401]
[1738201393568,0.3618,104370.0,104360.0,0.29777712]
[1738201393762,0.001,104370.0,104360.0,0.65857712]
[1738201393961,0.05072,104380.0,104370.0,0.191635]
[1738201394156,0.05072,104380.0,104370.0,0.76468324]
[1738201394157,0.04972,104380.0,104370.0,0.76468324]
[1738201394364,0.04972,104380.0,104370.0,2.15855912]
[1738201394760,0.05028,104390.0,104380.0,0.191614]
[1738201394963,0.191598,104390.0,104380.0,0.191614]
[1738201395168,0.191617,104380.0,104370.0,0.2978961]
[1738201395367,0.192617,104380.0,104370.0,0.00014398]
[1738201395670,0.553417,104380.0,104370.0,0.00014398]
[1738201395972,0.65854112,104380.0,104370.0,0.00014398]
[1738201396470,0.65954112,104380.0,104370.0,0.00014398]
[1738201397473,0.66054112,104380.0,104370.0,0.00014398]
[1738201397772,0.554417,104380.0,104370.0,0.00014398]
[1738201399367,0.193617,104380.0,104370.0,0.00014398]
[1738201399766,0.554417,104380.0,104370.0,0.00014398]
[1738201400073,0.66054112,104380.0,104370.0,0.00014398]
[1738201402074,0.191653,104360.0,104350.0,0.00960765]
[1738201402272,0.241213,104360.0,104340.0,0.69121212]
[1738201402577,0.70813712,104360.0,104340.0,0.585088]
[1738201402970,0.70813712,104360.0,104330.0,2.344318]
[1738201402971,0.552472,104350.0,104330.0,2.344318]
[1738201403277,0.65859612,104350.0,104340.0,0.00014398]
[1738201403475,0.552472,104350.0,104340.0,0.00014398]
[1738201403979,0.191672,104350.0,104340.0,0.00014398]
[1738201404180,0.191672,104350.0,104340.0,0.00314398]
[1738201404679,0.191672,104350.0,104340.0,0.00014398]
[1738201404887,0.191672,104350.0,104340.0,0.3019581]
[1738201405584,0.191672,104350.0,104340.0,0.19583398]
[1738201406180,0.5507281,104360.0,104340.0,0.19583398]
[1738201406378,0.7423861,104360.0,104340.0,0.19583398]
[1738201406580,0.7423861,104360.0,104340.0,0.3019581]
[1738201408488,0.63626198,104360.0,104340.0,0.19583398]
[1738201408678,0.63626198,104360.0,104340.0,0.55663398]
[1738201408876,0.03424398,104360.0,104350.0,0.3608]
[1738201409191,0.00014398,104360.0,104350.0,0.65859612]
[1738201409384,0.00014398,104360.0,104350.0,0.69309612]
[1738201409682,0.00014398,104360.0,104350.0,2.22689612]
[1738201412984,0.00014398,104360.0,104350.0,0.72689612]
[1738201413388,0.00014398,104360.0,104350.0,2.22689612]
[1738201413788,0.00014398,104360.0,104350.0,0.95393725]
[1738201415390,0.00014398,104360.0,104350.0,0.99393725]
[1738201415692,0.00014398,104360.0,104350.0,0.96357107]
[1738201418601,0.00014398,104360.0,104350.0,1.35894217]
[1738201426106,0.00014398,104360.0,104350.0,1.32514217]
[1738201426293,0.19179698,104360.0,104350.0,1.16479495]
[1738201426604,0.22459698,104360.0,104350.0,1.16479495]
[1738201426798,0.25619698,104360.0,104350.0,1.16479495]
[1738201426992,0.61699698,104360.0,104350.0,1.16479495]
[1738201427799,0.7231211,104360.0,104350.0,0.96348913]
[1738201430505,0.7231211,104360.0,104340.0,0.42040835]
[1738201430695,0.08368,104350.0,104340.0,0.42040835]
[1738201430903,0.08368,104350.0,104340.0,0.43012601]
[1738201431597,0.08368,104350.0,104340.0,0.43312601]
[1738201431997,0.08368,104350.0,104340.0,0.43012601]
[1738201432206,0.08368,104350.0,104340.0,0.43312601]
[1738201433107,0.08368,104350.0,104340.0,0.54025013]
[1738201433309,0.0344,104350.0,104340.0,0.54025013]
[1738201433502,0.08312,104350.0,104340.0,0.54025013]
[1738201434997,0.08312,104350.0,104340.0,0.31166876]
[1738201442114,0.08312,104350.0,104340.0,0.67246876]
[1738201442507,0.0344,104350.0,104340.0,0.67246876]
[1738201442707,0.082,104350.0,104340.0,0.67246876]
[1738201442912,0.0344,104350.0,104340.0,0.67246876]
[1738201443115,0.04774398,104360.0,104350.0,0.191672]
[1738201443313,0.04774398,104360.0,104350.0,0.69289612]
[1738201443616,0.04774398,104360.0,104350.0,0.76019612]
[1738201443920,0.04774398,104360.0,104350.0,2.26019612]
[1738201444705,0.04774398,104360.0,104350.0,0.76019612]
[1738201445102,0.04774398,104360.0,104350.0,0.69289612]
[1738201445304,0.23939698,104360.0,104350.0,0.191672]
[1738201445518,0.27379698,104360.0,104350.0,0.191672]
[1738201447320,0.27379698,104360.0,104350.0,0.42025337]
[1738201447715,0.27379698,104360.0,104350.0,0.52637749]
[1738201449523,0.27379698,104360.0,104350.0,0.42025337]
[1738201450227,0.27379698,104360.0,104350.0,0.191672]
[1738201450521,0.27379698,104360.0,104350.0,0.29779612]
[1738201453722,0.04774398,104360.0,104350.0,0.29779612]
[1738201453917,0.13383139,104360.0,104350.0,0.33069612]
[1738201454225,0.13383139,104360.0,104350.0,1.691672]
[1738201454721,0.16743139,104360.0,104350.0,1.691672]
[1738201455218,0.16743139,104360.0,104350.0,0.191672]
[1738201455810,0.16743139,104360.0,104350.0,0.29779612]
[1738201456820,0.28127955,104360.0,104350.0,0.29779612]
[1738201459312,0.28127955,104360.0,104350.0,0.65859612]
[1738201459514,0.28127955,104360.0,104350.0,0.29779612]
[1738201461625,0.20007955,104360.0,104350.0,0.29779612]
[1738201461813,0.20007955,104360.0,104350.0,0.65859612]
[1738201462209,0.20007955,104360.0,104350.0,0.69349612]
[1738201462615,0.20007955,104360.0,104350.0,0.72949612]
[1738201465025,0.00014398,104360.0,104350.0,1.57872331]
[1738201469125,0.08623139,104360.0,104350.0,0.95807749]
[1738201472928,0.08623139,104360.0,104350.0,1.24230824]
[1738201474228,0.08623139,104360.0,104350.0,1.10018412]
[1738201474428,0.35208439,104360.0,104350.0,1.06528412]
[1738201475029,0.35208439,104360.0,104350.0,1.17140824]
[1738201475634,0.16043139,104360.0,104350.0,1.17140824]
[1738201475832,0.12203139,104360.0,104350.0,1.17140824]
[1738201476429,0.08623139,104360.0,104350.0,1.22140824]
[1738201476625,0.08623139,104360.0,104350.0,1.24700824]
[1738201477028,0.08623139,104360.0,104350.0,2.74700824]
[1738201478235,0.08623139,104360.0,104350.0,2.79700824]
[1738201478548,0.08623139,104360.0,104350.0,2.90495733]
[1738201480642,0.08623139,104360.0,104350.0,3.01108145]
[1738201480830,0.04733916,104370.0,104360.0,0.191653]
[1738201481143,0.03859184,104370.0,104360.0,0.80290124]
[1738201481336,0.03859184,104370.0,104360.0,0.69677712]
[1738201481837,0.0358,104380.0,104370.0,0.191635]
[1738201482027,0.0358,104380.0,104370.0,0.65855912]
[1738201483142,0.0368,104380.0,104370.0,0.65855912]
[1738201485343,0.0378,104380.0,104370.0,0.65855912]
[1738201486640,0.0378,104380.0,104370.0,0.66840414]
[1738201486948,0.0378,104380.0,104370.0,0.83947415]
[1738201492846,0.0718,104380.0,104370.0,0.83947415]
[1738201495756,0.0718,104380.0,104370.0,0.89649749]
[1738201498457,0.0718,104380.0,104370.0,0.53569749]
[1738201498757,0.263417,104380.0,104370.0,0.53569749]
[1738201500147,0.263417,104380.0,104370.0,0.42957337]
[1738201500357,1.09114112,104380.0,104370.0,0.22809335]
[1738201500867,0.624217,104380.0,104370.0,0.41972835]
[1738201501163,0.263417,104380.0,104370.0,0.52585247]
[1738201501351,0.0718,104380.0,104370.0,0.52585247]
[1738201501553,0.08536,104380.0,104370.0,0.99277659]
[1738201501956,0.1342,104400.0,104390.0,0.191598]
[1738201502156,0.1342,104400.0,104390.0,0.29772212]
[1738201502350,0.1342,104400.0,104390.0,0.65852212]
[1738201502556,0.1342,104400.0,104390.0,2.15852212]
[1738201503759,0.1342,104400.0,104390.0,0.65952212]
[1738201504863,0.1342,104400.0,104390.0,0.65852212]
[1738201507666,0.1342,104400.0,104390.0,0.66842967]
[1738201510576,0.1,104400.0,104390.0,0.66842967]
[1738201510970,0.1,104400.0,104390.0,0.77282967]
[1738201511270,0.1,104400.0,104390.0,0.73882967]
[1738201511472,0.1,104400.0,104390.0,0.70262967]
[1738201511670,0.1,104400.0,104390.0,0.70362967]
[1738201516269,0.1,104400.0,104390.0,0.70662967]
[1738201516772,0.1,104400.0,104390.0,0.93472302]
[1738201516973,0.1,104400.0,104390.0,0.7943989]
[1738201517176,0.1,104400.0,104390.0,0.7953989]
[1738201517372,0.1,104400.0,104390.0,0.90152302]
[1738201518679,0.29158,104400.0,104390.0,0.7953989]
[1738201519177,0.32788,104400.0,104390.0,0.7953989]
[1738201520678,0.32788,104400.0,104390.0,0.7933989]
[1738201520883,0.32788,104400.0,104390.0,0.7913989]
[1738201521272,0.32788,104400.0,104390.0,0.96231029]
[1738201523182,0.79480412,104400.0,104390.0,0.40000474]
[1738201523480,0.90092824,104400.0,104390.0,0.40000474]
[1738201523687,0.90092824,104400.0,104390.0,0.28640474]
[1738201523688,0.79480412,104400.0,104390.0,0.28640474]
[1738201523886,0.90092824,104400.0,104390.0,0.23010474]
[1738201524080,0.191598,104390.0,104380.0,0.28526067]
[1738201524275,0.29772212,104390.0,104380.0,0.28526067]
[1738201524481,0.65852212,104390.0,104380.0,0.28526067]
[1738201524985,0.46692412,104390.0,104370.0,0.3410769]
[1738201525179,0.70606112,104380.0,104370.0,0.3410769]
[1738201525377,0.34526112,104380.0,104370.0,0.3410769]
[1738201525595,0.70606112,104380.0,104360.0,1.15190647]
[1738201525888,0.34526112,104380.0,104360.0,1.15190647]
[1738201526084,0.191635,104370.0,104360.0,1.04578235]
[1738201526390,0.191635,104370.0,104360.0,1.04592633]
[1738201526587,0.23928398,104380.0,104360.0,1.51285045]
[1738201526774,0.31298398,104380.0,104370.0,0.002]
[1738201527286,0.7799081,104380.0,104370.0,0.002]
[1738201527495,0.7799081,104380.0,104360.0,1.52850641]
[1738201527682,0.7799081,104380.0,104360.0,1.42538229]
[1738201527884,0.4191081,104380.0,104360.0,1.42538229]
[1738201528181,0.7799081,104380.0,104360.0,1.42538229]
[1738201528887,0.7799081,104380.0,104370.0,0.002]
[1738201529088,0.7799081,104380.0,104370.0,0.005]
[1738201529580,0.7799081,104380.0,104370.0,0.002]
[1738201530086,0.7799081,104380.0,104370.0,0.005]
[1738201530487,0.8143081,104380.0,104370.0,0.005]
[1738201530692,0.8143081,104380.0,104370.0,0.003]
[1738201531495,0.8143081,104380.0,104370.0,0.005]
[1738201541399,0.191635,104370.0,104340.0,0.0341]
[1738201541588,0.65859612,104350.0,104340.0,0.0341]
[1738201541792,0.70607612,104350.0,104340.0,0.0341]
[1738201542692,0.70607612,104350.0,104340.0,0.0401]
[1738201543497,0.70607612,104350.0,104340.0,0.23179]
[1738201543906,0.599952,104350.0,104340.0,0.23379]
[1738201545401,0.70607612,104350.0,104340.0,0.008]
[1738201548615,0.70607612,104350.0,104340.0,0.006]
[1738201549210,0.70607612,104350.0,104330.0,0.00014398]
[1738201549211,0.19169,104340.0,104330.0,0.00014398]
[1738201549422,0.76761412,104340.0,104330.0,0.00014398]
[1738201549816,0.87373824,104340.0,104330.0,0.00014398]
[1738201550212,0.68204824,104340.0,104310.0,0.1039]
[1738201550412,0.65865112,104320.0,104310.0,0.1039]
[1738201550706,0.70613112,104320.0,104310.0,0.1039]
[1738201550911,0.191745,104310.0,104300.0,1.69319786]
[1738201551115,0.191745,104310.0,104280.0,0.85685326]
[1738201551116,0.46692412,104310.0,104290.0,0.296979]
[1738201551418,0.65868812,104300.0,104290.0,0.03554398]
[1738201552418,0.65868812,104300.0,104290.0,0.00014398]
[1738201553424,0.65868812,104300.0,104290.0,0.00514398]
[1738201554222,0.65868812,104300.0,104290.0,0.00014398]
[1738201554607,0.5717681,104310.0,104290.0,0.00014398]
[1738201554807,0.36094398,104310.0,104300.0,0.29788812]
[1738201555122,0.52285477,104310.0,104300.0,0.264764]
[1738201555316,0.71459977,104310.0,104300.0,0.264764]
[1738201555507,0.71459977,104310.0,104300.0,0.300964]
[1738201556416,0.16205477,104310.0,104300.0,0.661764]
[1738201556617,0.16205477,104310.0,104300.0,0.300964]
[1738201557122,0.16205477,104310.0,104300.0,0.40708812]
[1738201557609,0.11457477,104310.0,104300.0,2.26788812]
[1738201558723,0.11457477,104310.0,104300.0,0.76788812]
[1738201559113,0.11457477,104310.0,104300.0,2.26788812]
[1738201559521,0.00014398,104310.0,104300.0,2.26788812]
[1738201560020,0.00014398,104310.0,104300.0,2.27750732]
[1738201563221,0.00014398,104310.0,104300.0,2.27850732]
[1738201564219,0.00014398,104310.0,104300.0,2.28150732]
[1738201565530,0.00014398,104310.0,104300.0,2.28050732]
[1738201565720,0.00014398,104310.0,104300.0,2.27750732]
[1738201567520,0.04748,104330.0,104320.0,0.191727]
[1738201567724,0.5525,104340.0,104320.0,0.46692412]
[1738201567928,0.59998,104340.0,104330.0,0.33463312]
[1738201568230,0.59998,104340.0,104330.0,0.228509]
[1738201568530,0.59994,104340.0,104330.0,0.228509]
[1738201568725,0.73978909,104350.0,104340.0,0.19169]
[1738201568920,0.78722909,104350.0,104340.0,0.29781412]
[1738201569128,0.78722909,104350.0,104340.0,0.19169]
[1738201569626,0.89335321,104350.0,104340.0,0.19169]
[1738201570027,0.89535321,104350.0,104340.0,0.19269]
[1738201571020,0.89835321,104350.0,104340.0,0.19369]
[1738201571222,0.78392242,104350.0,104340.0,0.19369]
[1738201571633,0.78192242,104350.0,104340.0,0.001]
[1738201571823,0.78392242,104350.0,104340.0,0.19269]
[1738201572627,0.42312242,104350.0,104340.0,0.19269]
[1738201572922,0.2813983,104350.0,104340.0,0.19269]
[1738201573832,0.0422823,104350.0,104340.0,0.19269]
[1738201574030,0.0897223,104350.0,104340.0,0.19269]
[1738201574236,0.0065823,104350.0,104340.0,0.19269]
[1738201574418,0.0540223,104350.0,104340.0,0.19269]
[1738201575327,0.71261842,104350.0,104340.0,0.001]
[1738201577327,0.74811842,104350.0,104340.0,0.001]
[1738201579636,0.6419943,104350.0,104340.0,0.001]
[1738201580126,0.74811842,104350.0,104340.0,0.001]
[1738201581134,0.74611842,104350.0,104330.0,0.27490455]
[1738201581326,0.74811842,104350.0,104330.0,0.27490455]
[1738201581722,0.6419943,104350.0,104330.0,0.44399855]
[1738201581928,0.0420823,104350.0,104340.0,0.19169]
[1738201582133,0.0875223,104350.0,104340.0,0.19169]
[1738201582331,0.0885223,104350.0,104340.0,0.19169]
[1738201582527,0.0855223,104350.0,104340.0,0.19169]